bitfinex/quotes_ETHUSD_20240927
["timestamp","ask_amount","ask_price","bid_price","bid_amount"]
[1727451567390,0.7861,2698.6,2698.2,3.70615]
[1727451568251,4.49174,2698.6,2698.2,3.70614]
[1727451568650,1.95522054,2698.6,2698.1,3.34848538]
[1727451568854,3.7061,2698.3,2697.8,3.7067]
[1727451569055,0.7731,2698.2,2697.9,7.70647]
[1727451569256,0.7731,2698.2,2697.9,3.70647]
[1727451569705,4.47928,2698.2,2697.6,7.05540538]
[1727451569889,6.03180302,2698.2,2697.6,7.05540538]
[1727451570099,6.03180302,2698.2,2697.7,4.0]
[1727451570282,3.70637,2698.1,2697.6,3.34848538]
[1727451570613,3.70637,2698.1,2697.6,7.05539538]
[1727451571079,3.70637,2698.1,2697.7,3.0]
[1727451571275,1.16544877,2698.1,2697.7,6.70684]
[1727451571706,0.7829,2697.9,2697.5,7.41407]
[1727451571889,0.7829,2697.9,2697.6,6.70699]
[1727451572089,0.7829,2697.9,2697.5,3.70702]
[1727451572312,2.66906795,2697.9,2697.3,3.7074]
[1727451572467,3.70672,2697.8,2697.3,3.7074]
[1727451572674,4.87216877,2697.8,2697.4,0.04952276]
[1727451572976,5.69337877,2697.7,2697.4,0.04952276]
[1727451573193,4.52793,2697.7,2697.2,3.70752]
[1727451573390,0.821,2697.7,2697.5,0.04951038]
[1727451573616,1.98644877,2697.7,2697.5,0.04951038]
[1727451573813,1.98644877,2697.7,2697.6,0.049498]
[1727451574173,0.821,2697.7,2697.3,3.70741]
[1727451574583,0.64077099,2697.7,2697.4,0.04952276]
[1727451574873,0.7981,2697.5,2697.0,10.76394538]
[1727451575092,0.7981,2697.5,2697.1,0.04955992]
[1727451575480,3.70754,2697.2,2697.1,0.04955992]
[1727451575685,6.98684588,2697.2,2697.1,0.04955992]
[1727451575890,3.70846,2696.6,2695.8,11.04937]
[1727451576092,3.70846,2696.6,2695.9,0.04453677]
[1727451576093,0.7896,2696.5,2695.9,0.04453677]
[1727451576304,0.7896,2696.5,2695.9,0.04373284]
[1727451576305,0.09272477,2696.4,2695.9,0.04373284]
[1727451576811,0.7896,2696.5,2695.9,0.04373284]
[1727451576974,4.49818,2696.5,2695.9,0.04373284]
[1727451577170,3.70893,2696.2,2695.9,0.04373284]
[1727451577518,4.4984,2696.3,2696.0,0.04075944]
[1727451577825,0.78067064,2696.5,2696.0,0.04075944]
[1727451577826,0.7896,2696.1,2696.0,0.04075944]
[1727451577984,0.7896,2695.7,2695.2,3.71028]
[1727451578171,0.7896,2695.7,2695.1,3.34848538]
[1727451578371,0.7896,2695.7,2695.1,7.05889538]
[1727451579774,0.7896,2695.7,2695.1,3.34848538]
[1727451580111,3.70975,2695.6,2695.1,3.34848538]
[1727451580465,0.7896,2695.7,2695.1,3.34848538]
[1727451580677,4.49923,2695.7,2695.1,3.34848538]
[1727451580912,3.70988,2695.5,2695.0,3.0]
[1727451581216,3.71002,2695.4,2695.0,3.0]
[1727451581530,3.71024,2695.3,2694.5,3.71116]
[1727451581830,3.71024,2695.3,2694.0,0.58150202]
[1727451581831,0.8261,2694.7,2694.0,0.58150202]
[1727451581969,0.8261,2694.3,2693.8,3.34848538]
[1727451582170,4.53703,2694.8,2694.1,3.34848538]
[1727451582565,0.8261,2694.8,2694.7,3.34848538]
[1727451582806,0.805,2695.4,2694.7,3.34848538]
[1727451583112,0.805,2695.4,2695.1,3.34848538]
[1727451583895,0.805,2695.4,2695.1,7.05891538]
[1727451584070,0.805,2695.4,2695.1,3.34848538]
[1727451584515,0.805,2695.4,2694.8,3.34848538]
[1727451584720,0.805,2695.4,2694.9,3.71071]
[1727451584880,0.805,2695.4,2694.8,3.34848538]
[1727451585570,0.805,2695.4,2694.8,7.05931538]
[1727451586208,0.805,2695.4,2694.8,3.34848538]
[1727451586712,0.805,2695.4,2694.7,3.71089]
[1727451586713,0.805,2695.4,2695.1,3.34848538]
[1727451586910,0.805,2695.4,2695.1,7.05888538]
[1727451587584,0.805,2695.4,2695.1,3.34848538]
[1727451587786,0.805,2695.4,2694.8,3.34848538]
[1727451587787,0.09275968,2695.3,2694.8,3.34848538]
[1727451588174,0.805,2695.4,2694.8,3.34848538]
[1727451588572,0.09276687,2695.3,2694.8,3.34848538]
[1727451589172,0.55354056,2695.3,2694.7,3.0]
[1727451589396,4.17101369,2695.3,2694.7,3.0]
[1727451589716,7.42048,2695.3,2694.7,3.0]
[1727451590006,3.71024,2695.3,2694.7,3.0]
[1727451591115,3.71024,2695.3,2694.7,3.71095]
[1727451591288,0.805,2695.4,2694.8,3.71082]
[1727451591485,4.966585,2695.4,2694.8,3.71082]
[1727451592075,1.256495,2695.4,2694.8,3.71077]
[1727451592280,1.256495,2695.4,2694.8,7.42153]
[1727451593003,1.256495,2695.4,2694.9,3.71071]
[1727451593326,1.256495,2695.4,2694.8,7.42149]
[1727451593494,1.256495,2695.4,2694.8,3.71073]
[1727451593822,0.805,2695.4,2695.0,3.71049]
[1727451594320,0.805,2695.4,2695.0,7.42099]
[1727451594693,0.805,2695.4,2695.2,3.71029]
[1727451594901,0.805,2695.4,2695.0,3.71049]
[1727451595498,0.805,2695.4,2695.0,7.42095]
[1727451595697,0.805,2695.4,2695.1,3.71036]
[1727451595914,0.805,2695.4,2695.3,3.71016]
[1727451596124,0.8108,2695.8,2695.1,3.34848538]
[1727451596428,0.8108,2696.3,2695.7,3.70952]
[1727451596631,4.51965,2696.3,2695.7,3.70952]
[1727451596928,0.822839,2696.2,2695.7,3.70952]
[1727451597396,4.531779,2696.2,2695.7,3.70952]
[1727451597795,8.240799,2696.2,2695.5,10.76803538]
[1727451598013,3.70908,2696.1,2695.5,10.76803538]
[1727451598187,0.9051659,2696.1,2695.5,10.76803538]
[1727451598387,7.41796,2696.2,2695.5,10.76803538]
[1727451598584,7.41796,2696.2,2695.6,3.70974]
[1727451599426,7.41794,2696.2,2695.6,3.70974]
[1727451600638,3.70907,2696.1,2695.5,3.70975]
[1727451600832,4.531944,2696.1,2695.5,3.70975]
[1727451601210,3.80194796,2696.0,2695.5,3.70975]
[1727451601412,0.822874,2696.1,2695.5,7.41956]
[1727451601618,3.70921,2696.0,2695.5,3.70975]
[1727451602301,0.09274795,2695.9,2695.5,3.70975]
[1727451602637,0.8197,2695.8,2695.5,3.70975]
[1727451602842,0.09274794,2695.7,2695.5,3.70975]
[1727451603151,4.52919,2695.8,2695.1,3.71035]
[1727451603328,7.05714538,2696.4,2695.0,3.71046]
[1727451603329,4.53386,2695.5,2695.0,3.71046]
[1727451603715,0.8239,2695.5,2695.0,3.71046]
[1727451603901,0.8239,2695.5,2695.3,3.71008]
[1727451604102,0.8239,2695.5,2695.4,3.71002]
[1727451604718,0.7614,2695.7,2695.4,7.41996]
[1727451604912,0.7614,2695.7,2695.4,7.41985]
[1727451605111,0.7614,2695.7,2695.5,3.70982]
[1727451605546,0.7614,2695.7,2695.4,3.70999]
[1727451605725,0.7614,2695.7,2695.5,3.70981]
[1727451606403,0.7614,2695.7,2695.6,3.70974]
[1727451606610,0.8107,2696.0,2695.6,3.70974]
[1727451606923,1.181615,2696.0,2695.6,3.70974]
[1727451607543,1.181615,2696.0,2695.5,3.70987]
[1727451607739,4.890825,2696.0,2695.5,3.70987]
[1727451607983,4.890825,2696.0,2695.5,7.41967]
[1727451608182,0.8107,2696.0,2695.6,3.70964]
[1727451608383,0.8107,2696.0,2695.7,3.70953]
[1727451608572,3.7086,2696.5,2695.9,3.70933]
[1727451608573,0.8107,2696.4,2695.9,3.70933]
[1727451608767,0.8107,2696.4,2695.9,7.05781538]
[1727451608974,0.8107,2696.4,2696.1,3.70899]
[1727451609282,0.8107,2696.7,2696.3,3.70878]
[1727451609490,4.51894,2696.7,2696.3,3.34848538]
[1727451609845,0.8107,2696.7,2696.3,7.05724538]
[1727451610676,0.09272183,2696.6,2696.2,3.70891]
[1727451611475,1.2996446,2696.7,2696.2,3.70891]
[1727451611649,3.80118354,2696.6,2696.1,7.05746538]
[1727451612064,3.80118354,2696.6,2696.1,3.34848538]
[1727451612960,3.80118354,2696.6,2696.1,7.05743538]
[1727451613549,3.7073,2697.4,2695.6,4.50132]
[1727451613550,3.70867,2696.4,2695.9,3.34848538]
[1727451613752,0.806,2696.2,2695.9,3.34848538]
[1727451614046,0.0927335,2696.1,2695.9,3.34848538]
[1727451614490,0.806,2696.2,2695.9,7.05774538]
[1727451614787,0.806,2696.5,2696.1,7.05746538]
[1727451614964,0.806,2696.7,2696.4,3.34848538]
[1727451615581,0.806,2696.7,2696.6,3.34848538]
[1727451616053,0.7991,2696.9,2696.6,10.76504538]
[1727451616556,0.7991,2696.9,2696.6,3.34848538]
[1727451616757,0.09270987,2696.8,2696.5,3.70847]
[1727451617187,3.80082987,2696.8,2696.4,7.05705538]
[1727451617353,4.26080786,2696.8,2696.4,3.34848538]
[1727451617557,3.70823,2696.7,2696.3,3.70865]
[1727451617790,0.09271847,2696.6,2696.3,3.70865]
[1727451619100,0.09271877,2696.7,2696.3,3.70865]
[1727451619599,0.09271877,2696.7,2696.4,3.34848538]
[1727451619759,3.70809,2696.8,2696.4,3.34848538]
[1727451619962,3.70809,2696.8,2696.4,7.05712538]
[1727451620188,0.09271738,2696.7,2696.4,7.05712538]
[1727451622416,0.09271738,2696.7,2696.4,7.05705538]
[1727451623703,3.80098738,2696.7,2696.4,3.34848538]
[1727451624003,5.22779974,2696.6,2696.2,3.34848538]
[1727451624174,3.70886,2696.3,2695.9,3.34848538]
[1727451624501,3.70886,2696.3,2695.9,7.05774538]
[1727451624502,0.8056,2696.1,2695.9,7.05774538]
[1727451624899,0.8056,2696.1,2695.9,3.34848538]
[1727451625405,0.8056,2696.1,2695.7,7.05801538]
[1727451625699,0.8056,2696.1,2695.8,3.70945]
[1727451626009,0.8056,2696.1,2695.9,3.34848538]
[1727451626569,0.8056,2696.1,2695.9,7.05770538]
[1727451626808,0.8056,2696.1,2696.0,3.70919]
[1727451627412,0.8061,2696.4,2696.0,3.70919]
[1727451627602,5.37289612,2696.4,2696.1,3.34848538]
[1727451627801,1.66423612,2696.4,2696.1,3.34848538]
[1727451628622,5.37289612,2696.4,2696.1,3.34848538]
[1727451629210,3.70878,2696.3,2695.9,7.05780538]
[1727451629415,4.36248673,2696.3,2695.9,3.34848538]
[1727451629711,4.36248673,2696.3,2695.5,0.8135]
[1727451629712,3.70898,2696.2,2695.7,7.05802538]
[1727451630293,1.0041738,2696.2,2695.9,3.34848538]
[1727451630497,4.87296122,2696.3,2695.9,7.05780538]
[1727451631588,1.16417122,2696.3,2696.0,3.70912]
[1727451631790,1.97027122,2696.4,2696.1,3.34848538]
[1727451631990,1.97027122,2696.4,2696.1,3.40416727]
[1727451632715,1.97027122,2696.4,2696.1,7.11321727]
[1727451632872,1.97027122,2696.4,2696.1,10.82217727]
[1727451633073,1.97027122,2696.4,2696.1,10.82212727]
[1727451633296,1.97027122,2696.4,2696.1,7.11312727]
[1727451633580,1.16417122,2696.5,2696.3,3.34848538]
[1727451633777,3.70865,2696.4,2696.1,3.40416727]
[1727451634087,0.09272662,2696.3,2696.1,3.34848538]
[1727451634922,0.09272662,2696.3,2696.1,7.05752538]
[1727451635215,1.25689782,2696.4,2696.1,7.05752538]
[1727451635818,1.16417122,2696.4,2696.1,7.05752538]
[1727451637632,1.16417122,2696.4,2696.1,7.05747538]
[1727451638412,5.2607483,2696.5,2696.1,7.05747538]
[1727451638413,1.16417122,2696.3,2696.1,7.05747538]
[1727451638935,1.16417122,2696.4,2696.2,3.70892]
[1727451639328,1.16417122,2696.5,2696.2,3.70892]
[1727451639512,1.16417122,2696.4,2696.2,3.70892]
[1727451640022,1.16417122,2696.5,2696.3,3.34848538]
[1727451640546,3.70879,2696.3,2695.8,7.05789538]
[1727451640842,1.16551848,2696.1,2695.8,7.05789538]
[1727451641002,1.16551848,2696.1,2695.9,3.70932]
[1727451641436,1.16551848,2696.1,2695.9,7.41858]
[1727451641741,1.96161848,2696.2,2695.9,3.70926]
[1727451642112,1.96161848,2696.2,2695.9,7.41848]
[1727451642311,1.96161848,2696.2,2695.9,3.70922]
[1727451642621,1.16551848,2696.1,2696.0,3.34848538]
[1727451642940,1.16551848,2696.1,2695.8,7.05793538]
[1727451643900,1.16551848,2696.0,2695.4,3.34848538]
[1727451644217,1.25826143,2695.9,2695.5,3.70976]
[1727451644403,1.16551848,2695.8,2695.5,3.70976]
[1727451646929,1.16551848,2695.8,2695.6,3.70974]
[1727451647289,1.16551848,2695.8,2695.6,7.05822538]
[1727451647626,1.16551848,2695.9,2695.6,7.05822538]
[1727451647822,1.16551848,2695.9,2695.7,0.05748493]
[1727451648024,1.16551848,2695.9,2695.8,3.34848538]
[1727451648335,1.16551848,2696.0,2695.8,7.11543266]
[1727451649231,1.16551848,2695.9,2695.8,7.11543266]
[1727451649567,1.16551848,2695.9,2695.8,7.89125538]
[1727451649770,1.55402464,2696.1,2696.0,3.70919]
[1727451649771,1.16551848,2696.1,2696.0,3.70919]
[1727451649969,1.16551848,2696.1,2696.0,7.05767538]
[1727451650272,1.55402464,2696.2,2696.0,7.11506386]
[1727451651189,1.55402464,2696.1,2696.0,7.11506386]
[1727451652055,1.55402464,2696.2,2696.0,7.11506386]
[1727451652369,1.55402464,2696.2,2696.1,3.70906]
[1727451652370,1.5561988,2696.2,2696.1,3.70906]
[1727451652879,1.16713571,2696.3,2696.1,3.76636735]
[1727451653085,1.16713571,2696.3,2696.2,7.05740538]
[1727451653238,1.16713571,2696.4,2696.3,3.70878]
[1727451653434,1.5561988,2696.5,2696.4,3.70864]
[1727451653435,1.55624196,2696.5,2696.4,3.70864]
[1727451653678,1.55624196,2696.5,2696.4,7.05712538]
[1727451653880,1.55624196,2696.5,2696.4,7.11434854]
[1727451654063,1.55624196,2696.6,2696.5,3.70851]
[1727451654271,1.94531778,2696.7,2696.5,3.70851]
[1727451654578,1.94531778,2696.7,2696.5,3.76571939]
[1727451654942,1.55628739,2696.6,2696.5,3.76571939]
[1727451655346,1.16710884,2696.8,2696.6,6.70837]
[1727451655643,1.55628739,2696.9,2696.8,3.70809]
[1727451655644,1.16710884,2696.9,2696.8,3.70809]
[1727451655848,1.16710884,2697.0,2696.9,3.70796]
[1727451656282,1.16710884,2697.1,2697.0,3.70782]
[1727451656482,1.16710884,2697.1,2697.0,7.05630538]
[1727451656799,1.16710884,2697.1,2697.0,7.94817625]
[1727451656945,0.7994,2697.5,2697.3,3.70741]
[1727451656946,1.16710884,2697.5,2697.3,3.70741]
[1727451657147,1.16710884,2697.6,2697.4,7.11252253]
[1727451657683,1.16710884,2697.5,2697.4,7.11252253]
[1727451657876,1.16710884,2697.5,2697.4,3.40525253]
[1727451658399,1.16710884,2697.6,2697.4,7.11252253]
[1727451658761,1.16710884,2697.6,2697.4,3.40525253]
[1727451659152,1.16710884,2697.5,2697.4,0.05676715]
[1727451659377,1.16710884,2697.5,2697.2,7.05594538]
[1727451659566,1.16710884,2697.5,2697.4,0.05676715]
[1727451659892,1.16710884,2697.5,2697.2,7.05594538]
[1727451660102,1.16710884,2697.5,2697.4,0.05676715]
[1727451660607,1.16710884,2697.5,2697.2,7.05594538]
[1727451660752,1.16710884,2697.5,2697.4,0.05676715]
[1727451660948,0.7952,2697.4,2697.0,3.34848538]
[1727451661149,0.7952,2697.4,2697.1,0.0549414]
[1727451661408,1.96230884,2697.4,2697.1,0.0549414]
[1727451661552,4.59517063,2697.4,2697.1,0.0549414]
[1727451661754,2.05499947,2697.4,2697.1,0.0549414]
[1727451661951,3.22277205,2697.4,2697.1,0.0549414]
[1727451662153,1.16710884,2697.3,2697.1,0.0549414]
[1727451662457,0.09269478,2697.2,2696.9,3.70795]
[1727451662656,0.09269478,2697.2,2696.8,3.34848538]
[1727451663052,0.09269478,2697.2,2696.8,7.05647538]
[1727451663379,0.09269478,2697.2,2696.9,3.70791]
[1727451664104,0.09269478,2697.2,2696.8,7.05647538]
[1727451666659,0.09269478,2697.2,2696.9,3.70789]
[1727451666859,0.09269478,2697.2,2696.8,7.05647538]
[1727451667058,1.1026081,2697.2,2696.6,3.34848538]
[1727451667315,0.7629,2696.8,2696.4,3.70854]
[1727451667463,0.09270981,2696.7,2696.4,7.05702538]
[1727451667661,0.85561065,2696.8,2696.5,3.7085]
[1727451667966,0.7629,2696.8,2696.5,3.7085]
[1727451668169,0.85560979,2696.8,2696.5,3.7085]
[1727451668511,0.85560979,2696.8,2696.4,7.05702538]
[1727451669001,0.85560979,2696.8,2696.6,7.05685538]
[1727451669002,0.7629,2696.8,2696.6,7.05685538]
[1727451669186,5.63776884,2697.1,2696.7,3.70821]
[1727451669387,1.93000884,2697.1,2696.8,3.34848538]
[1727451669775,3.70754,2697.2,2696.8,3.34848538]
[1727451669776,1.16710884,2697.2,2696.8,3.34848538]
[1727451669985,1.16710884,2697.2,2696.9,3.70795]
[1727451670192,1.16710884,2697.2,2697.1,3.70768]
[1727451670375,2.59117417,2697.5,2697.1,7.41528]
[1727451670376,1.16710884,2697.4,2697.1,7.41528]
[1727451670575,1.16710884,2697.4,2697.2,3.34848538]
[1727451670799,1.55628739,2697.5,2697.2,3.34848538]
[1727451670800,1.16710884,2697.5,2697.2,3.34848538]
[1727451671105,5.64570519,2697.8,2697.4,3.34848538]
[1727451671106,1.16710884,2697.7,2697.4,3.34848538]
[1727451671313,1.16710884,2697.8,2697.6,3.34848538]
[1727451671465,2.38638739,2697.9,2697.6,3.34848538]
[1727451671466,1.99720884,2697.9,2697.6,3.34848538]
[1727451671793,0.8301,2697.9,2697.6,3.34848538]
[1727451672107,0.8301,2697.9,2697.5,3.70713]
[1727451672108,0.8301,2697.9,2697.8,3.34848538]
[1727451672280,1.16710884,2698.0,2697.8,3.34848538]
[1727451672466,1.16710884,2698.3,2697.9,3.70658]
[1727451672665,0.79715134,2698.3,2698.1,3.34848538]
[1727451672974,0.79715134,2698.3,2698.2,0.04865988]
[1727451674066,0.7958,2698.5,2698.2,0.04865988]
[1727451674302,1.16710884,2698.7,2698.3,3.34848538]
[1727451674518,4.87240884,2698.9,2698.5,3.34848538]
[1727451674803,0.56441652,2698.9,2698.6,0.0482265]
[1727451675007,4.26962652,2698.9,2698.6,0.0482265]
[1727451675309,0.54367354,2698.8,2698.6,0.0482265]
[1727451676570,4.24905354,2698.8,2698.6,0.0482265]
[1727451677000,4.34169603,2698.8,2698.6,0.0482265]
[1727451677310,4.24905354,2698.8,2698.6,0.0482265]
[1727451677487,4.24905354,2698.8,2698.3,3.34848538]
[1727451677678,4.24905354,2698.8,2698.7,0.04785284]
[1727451677889,4.24905354,2698.8,2698.3,3.34848538]
[1727451678073,4.24905354,2698.8,2698.7,0.04785284]
[1727451678275,3.70538,2698.8,2698.3,7.05450538]
[1727451678474,3.70538,2698.8,2698.7,0.04785284]
[1727451678714,3.70538,2698.8,2698.3,7.05450538]
[1727451678891,3.70538,2698.8,2698.7,0.04785284]
[1727451679076,3.70538,2698.8,2698.3,7.05450538]
[1727451679267,3.70538,2698.8,2698.7,0.04785284]
[1727451679468,3.70507,2699.0,2698.7,3.34848538]
[1727451679773,4.49243,2699.1,2698.9,3.34848538]
[1727451679774,0.7874,2699.1,2698.9,3.34848538]
[1727451679971,4.49236,2699.1,2699.0,0.046878]
[1727451680503,4.49236,2699.1,2698.7,3.34848538]
[1727451680504,3.70508,2699.0,2698.7,3.34848538]
[1727451681109,3.70524,2698.9,2698.7,3.34848538]
[1727451681308,3.70535,2698.8,2698.5,4.12248538]
[1727451681872,3.70535,2698.8,2698.5,0.774]
[1727451682179,3.70535,2698.8,2698.5,4.12248538]
[1727451682515,3.70521,2698.9,2698.5,4.12248538]
[1727451685137,0.7874,2699.1,2698.7,3.34848538]
[1727451685424,3.70494,2699.1,2698.7,3.34848538]
[1727451685627,3.70485,2699.2,2698.7,3.34848538]
[1727451685785,3.70485,2699.2,2698.7,7.05394538]
[1727451685984,7.40976,2699.2,2698.7,7.05394538]
[1727451686326,4.52781,2699.4,2698.9,3.34848538]
[1727451686493,3.70466,2699.3,2698.9,7.05368538]
[1727451686822,3.70456,2699.4,2699.1,3.34848538]
[1727451686991,3.70456,2699.4,2699.0,0.7743]
[1727451687193,3.7044,2699.5,2699.0,0.7743]
[1727451687414,3.70468,2699.3,2699.0,0.7743]
[1727451687586,7.41011,2699.1,2698.7,3.34848538]
[1727451688085,3.70509,2699.0,2698.7,3.34848538]
[1727451689489,3.70509,2699.0,2698.5,3.70572]
[1727451689490,3.70509,2699.0,2698.5,7.05420538]
[1727451690058,3.70509,2699.0,2698.7,3.34848538]
[1727451690406,3.70494,2699.1,2698.7,3.34848538]
[1727451692515,3.70494,2699.1,2698.8,0.04375639]
[1727451692719,3.70494,2699.1,2698.7,3.34848538]
[1727451692924,3.70494,2699.1,2698.8,0.04375639]
[1727451693099,3.70494,2699.1,2698.7,3.34848538]
[1727451693527,3.70494,2699.1,2698.8,0.04375639]
[1727451693757,3.70494,2699.1,2698.7,3.34848538]
[1727451693944,3.70415,2699.7,2699.0,4.15818538]
[1727451694106,3.70441,2699.5,2699.1,3.70493]
[1727451694308,0.8251,2699.8,2699.3,3.34848538]
[1727451694531,0.8251,2699.8,2699.3,7.05306538]
[1727451694532,4.52908,2699.8,2699.3,7.05306538]
[1727451694731,0.8251,2699.8,2699.5,3.34848538]
[1727451695105,4.52918,2699.8,2699.6,0.04342693]
[1727451695550,0.777,2700.1,2699.7,3.34848538]
[1727451695908,3.7037,2700.0,2699.8,0.04303368]
[1727451696107,4.48057,2700.1,2699.7,3.34848538]
[1727451696542,4.48057,2700.1,2699.8,0.04303368]
[1727451696741,3.70371,2700.0,2699.5,7.80965538]
[1727451696935,3.70371,2700.0,2699.6,0.04296364]
[1727451697541,4.48057,2700.1,2699.6,3.74718364]
[1727451697745,0.765,2700.7,2700.0,3.70365]
[1727451697932,0.1288437,2700.9,2700.5,3.34848538]
[1727451698304,0.1288437,2700.9,2700.8,7.05108538]
[1727451698619,0.1288437,2700.9,2700.8,7.09365875]
[1727451698918,3.70121,2701.9,2700.8,7.22075875]
[1727451698919,3.70124,2701.8,2700.8,7.22075875]
[1727451699171,3.70116,2701.9,2701.7,3.34848538]
[1727451699463,3.70116,2701.9,2700.8,3.04257337]
[1727451699464,0.8118,2702.2,2701.8,0.04171144]
[1727451699647,4.51254,2702.2,2701.8,0.04171144]
[1727451699825,4.51254,2702.2,2701.7,3.34848538]
[1727451699826,0.8118,2702.2,2701.7,3.34848538]
[1727451700164,3.70045,2702.4,2701.9,3.34848538]
[1727451700467,3.70082,2702.1,2702.0,0.03856174]
[1727451700838,3.70082,2702.1,2701.3,3.70188]
[1727451701022,3.70082,2702.1,2702.0,0.03855566]
[1727451701223,3.70082,2702.1,2701.3,3.70188]
[1727451701422,3.70082,2702.1,2702.0,0.03855566]
[1727451701651,4.440982,2702.1,2701.3,3.70188]
[1727451701924,4.440982,2702.1,2701.4,3.70173]
[1727451702267,4.440982,2702.1,2701.5,0.03862425]
[1727451702436,0.8141782,2702.0,2701.5,0.03862425]
[1727451702935,0.8174,2701.9,2701.5,0.03862425]
[1727451703134,3.70087,2702.1,2701.5,0.03862425]
[1727451703963,0.8296,2702.2,2701.6,3.70148]
[1727451704258,3.70028,2702.5,2701.6,3.70148]
[1727451704259,3.7005,2702.4,2701.7,3.73989681]
[1727451704484,0.370028,2702.4,2701.7,3.73989681]
[1727451704846,4.070478,2702.4,2701.7,3.73989681]
[1727451705057,0.370028,2702.4,2702.0,3.70093]
[1727451705282,7.40095,2702.7,2702.0,3.70086]
[1727451705569,3.7002,2702.6,2702.1,0.03741884]
[1727451705787,7.40072,2702.5,2702.1,0.03741884]
[1727451706084,7.40072,2702.5,2701.8,3.7012]
[1727451706085,3.70044,2702.4,2701.6,4.46329]
[1727451706375,3.70034,2702.5,2702.0,3.70095]
[1727451706547,4.1155616,2702.5,2702.1,0.03741884]
[1727451706930,4.1155616,2702.5,2702.2,0.03740513]
[1727451707170,0.41155616,2702.4,2701.9,3.701]
[1727451707474,0.41155616,2702.4,2702.0,0.03743256]
[1727451707975,0.41155616,2702.4,2702.0,3.73838256]
[1727451708273,3.70014,2702.6,2702.0,3.73838256]
[1727451708960,3.70085,2702.7,2702.0,3.73838256]
[1727451709163,0.0008,2702.7,2702.1,5.18491594]
[1727451709369,0.035,2703.2,2702.8,4.45936]
[1727451709657,0.035,2703.2,2702.7,3.69999]
[1727451709658,0.13340871,2703.5,2703.4,3.69904]
[1727451709863,3.69749,2704.6,2703.5,3.6989]
[1727451709864,8.94581698,2704.4,2703.5,3.6989]
[1727451710031,5.24803698,2704.4,2703.5,3.6989]
[1727451710232,5.24803698,2704.4,2703.5,3.73506226]
[1727451712077,8.94579698,2704.4,2703.5,3.73506226]
[1727451712475,5.24803698,2704.4,2703.5,3.73506226]
[1727451712686,3.69804,2704.2,2703.5,0.03616226]
[1727451712891,3.69807,2704.2,2703.5,3.73506226]
[1727451713181,8.94576698,2704.4,2703.5,3.73506226]
[1727451713182,8.94577698,2704.4,2703.5,3.73506226]
[1727451713383,3.69804,2704.2,2703.5,3.73506226]
[1727451713990,3.69804,2704.2,2703.5,0.03616226]
[1727451714153,3.69804,2704.2,2703.5,3.73506226]
[1727451714359,7.3961,2704.2,2703.5,3.73506226]
[1727451714672,3.69809,2704.1,2703.5,3.73506226]
[1727451714879,7.39609,2704.2,2703.5,3.73506226]
[1727451715177,3.69804,2704.2,2703.5,0.03616226]
[1727451715482,3.8276137,2703.6,2703.5,0.03616226]
[1727451715687,0.88146607,2703.6,2703.1,3.69937]
[1727451715846,0.88146607,2703.6,2703.2,3.69925]
[1727451716049,0.88146607,2703.6,2703.3,3.69915]
[1727451716272,0.1288437,2703.6,2703.3,7.39825]
[1727451716459,0.1288437,2703.6,2703.5,3.6989]
[1727451718959,0.1288437,2703.6,2703.5,4.4974]
[1727451720904,0.1288437,2703.6,2703.5,3.6989]
[1727451721261,0.1288437,2703.6,2703.5,4.4974]
[1727451726905,0.1288437,2703.6,2703.5,3.6989]
[1727451728416,0.1288437,2703.6,2703.5,4.4779]
[1727451729321,0.1288437,2703.6,2703.5,7.4779]
[1727451729526,0.1288437,2703.6,2703.5,8.09716927]
[1727451729819,0.1288437,2703.6,2703.5,12.09716927]
[1727451730325,0.1288437,2703.6,2703.5,8.0279]
[1727451730489,0.1288437,2703.6,2703.5,7.4779]
[1727451730689,0.1288437,2703.6,2703.5,8.09716927]
[1727451730902,0.1288437,2703.6,2703.5,8.64716927]
[1727451731384,0.1288437,2703.6,2703.5,8.0279]
[1727451731585,0.1288437,2703.6,2703.5,7.4779]
[1727451731910,0.1288437,2703.6,2703.5,8.09716927]
[1727451732378,0.1288437,2703.6,2703.5,8.64716927]
[1727451733482,0.1288437,2703.6,2703.5,12.64716927]
[1727451733683,0.1288437,2703.6,2703.5,12.0279]
[1727451734393,0.1288437,2703.6,2703.5,15.06765025]
[1727451736425,0.1288437,2703.6,2703.5,15.89619273]
[1727451738031,0.1288437,2703.6,2703.5,50.89619273]
[1727451739298,0.1288437,2703.6,2703.5,42.6989]
[1727451739824,0.1288437,2703.6,2703.5,45.6989]
[1727451740189,0.1288437,2703.6,2703.5,50.11719273]
[1727451740383,0.1288437,2703.6,2703.5,15.11719273]
[1727451740785,0.1288437,2703.6,2703.5,45.6989]
[1727451741484,0.1288437,2703.6,2703.5,46.4971]
[1727451742422,0.1288437,2703.6,2703.5,47.0471]
[1727451742639,0.1288437,2703.6,2703.5,66.6671]
[1727451743385,0.1288437,2703.6,2703.5,31.1171]
[1727451744794,0.1288437,2703.6,2703.5,11.4971]
[1727451745029,0.1288437,2703.6,2703.5,12.0471]
[1727451745685,0.1288437,2703.6,2703.5,12.66636927]
[1727451746591,0.1288437,2703.6,2703.5,11.4971]
[1727451750231,0.1288437,2703.6,2703.5,7.4971]
[1727451750800,0.1288437,2703.6,2703.5,3.6989]
[1727451751614,0.1288437,2703.6,2703.3,3.69904]
[1727451751615,0.1288437,2703.6,2703.4,3.69892]
[1727451751933,0.1288437,2703.6,2703.5,3.6989]
[1727451752106,0.1288437,2703.6,2703.4,3.69895]
[1727451752631,0.1288437,2703.6,2703.4,3.69893]
[1727451753212,0.1288437,2703.6,2703.5,3.6989]
[1727451753398,0.1288437,2703.6,2703.3,3.69916]
[1727451753606,0.1288437,2703.6,2703.4,3.69897]
[1727451754811,0.1288437,2703.6,2703.4,7.39792]
[1727451755000,0.1288437,2703.6,2703.5,3.6989]
[1727451755523,0.1288437,2703.6,2703.4,7.39792]
[1727451755727,0.1288437,2703.6,2703.4,3.69895]
[1727451755931,0.1288437,2703.6,2703.0,4.41829273]
[1727451756095,0.1288437,2703.6,2703.2,3.69931]
[1727451756301,0.1288437,2703.6,2703.3,3.69915]
[1727451757669,0.1288437,2703.6,2703.3,3.6991]
[1727451757942,0.8146,2703.5,2703.2,3.69919]